fUST/lending_fUST_20260107
["ID","MTS","AMOUNT","RATE_DAILY","PERIOD"]
[400663290,1767775839034,-300.0,0.00012937,2]
[400663292,1767775839045,-300.0,0.00012937,2]
[400663294,1767775839054,-300.0,0.00012937,2]
[400663296,1767775839065,-300.0,0.00012937,2]
[400663299,1767775839075,-300.0,0.00012937,2]
[400663301,1767775839087,-300.0,0.00012937,2]
[400663303,1767775839097,-600.0,0.00012937,2]
[400663305,1767775839108,-500.0,0.00013273,2]
[400663307,1767775839119,-500.0,0.00013273,2]
[400663309,1767775839129,-500.0,0.00013273,2]
[400663311,1767775839139,-500.0,0.00013273,2]
[400663313,1767775839148,-500.0,0.00013273,2]
[400663315,1767775839159,-261.52721903,0.00013421,2]
[400663317,1767775839168,-300.0,0.00013673,2]
[400663319,1767775839179,-420.0,0.00013693,2]
[400663320,1767775839188,-500.0,0.00013698,2]
[400663321,1767775839204,-500.0,0.00013698,2]
[400663322,1767775839226,-500.0,0.00013698,2]
[400663323,1767775839241,-500.0,0.00013698,2]
[400663324,1767775839253,-500.0,0.00013698,2]
[400663325,1767775839264,-500.0,0.00013698,2]
[400663326,1767775839274,-500.0,0.00013698,2]
[400663327,1767775839284,-560.87931796,0.00013698,2]
[400663328,1767775839294,-500.0,0.00013698,2]
[400663329,1767775839304,-500.0,0.00013698,2]
[400663330,1767775839314,-500.0,0.00013698,2]
[400663331,1767775839323,-500.0,0.00013698,2]
[400663332,1767775839333,-500.0,0.00013698,2]
[400663333,1767775839343,-500.0,0.00013698,2]
[400663334,1767775839352,-500.0,0.00013698,2]
[400663335,1767775839362,-500.0,0.00013698,2]
[400663336,1767775839372,-500.0,0.00013698,2]
[400663337,1767775839382,-500.0,0.00013698,2]
[400663338,1767775839391,-500.0,0.00013698,2]
[400663339,1767775839400,-500.0,0.00013698,2]
[400663340,1767775839410,-500.0,0.00013698,2]
[400663341,1767775839420,-500.0,0.00013698,2]
[400663342,1767775839431,-500.0,0.00013698,2]
[400663343,1767775839440,-500.0,0.00013698,2]
[400663344,1767775839450,-500.0,0.00013698,2]
[400663345,1767775839460,-500.0,0.00013698,2]
[400663347,1767775839470,-362.49716895,0.00013698,2]
[400663349,1767775839479,-2245.401059,0.00013699,2]
[400663351,1767775839489,-500.0,0.00013699,2]
[400663353,1767775839498,-500.0,0.00013699,2]
[400663355,1767775839508,-500.0,0.00013699,2]
[400663357,1767775839518,-500.0,0.00013699,2]
[400663359,1767775839527,-152.05252624,0.00013699,2]
[400663361,1767775839536,-500.0,0.00013699,2]
[400663363,1767775839546,-500.0,0.00013699,2]
[400663365,1767775839555,-500.0,0.00013699,2]
[400663367,1767775839565,-1000.0,0.00013821,2]
[400663369,1767775839574,-1000.0,0.00013821,2]
[400663371,1767775839584,-1000.0,0.00013821,2]
[400663373,1767775839594,-1000.0,0.00013821,2]
[400663375,1767775839603,-1000.0,0.00013821,2]
[400663377,1767775839613,-8929.0,0.0001386,2]
[400663379,1767775839623,-13851.9949972,0.00014001,2]
[400663381,1767775839632,-303.80343287,0.00014175,2]
[400663383,1767775839643,-514.2625838,0.00014175,2]
[400663385,1767775839653,-600.0,0.00014221,2]
[400663387,1767775839662,-720.0,0.00014231,2]
[400663389,1767775839672,-502.70184396,0.00014247,2]
[400663391,1767775839682,-1000.0,0.00014247,2]
[400663393,1767775839691,-1000.0,0.00014247,2]
[400663395,1767775839701,-1000.0,0.00014247,2]
[400663397,1767775839710,-1000.0,0.00014247,2]
[400663399,1767775839722,-506.91111939,0.00014247,2]
[400663401,1767775839732,-1000.0,0.00014247,2]
[400663403,1767775839742,-1500.0,0.00014368,2]
[400663405,1767775839751,-500.0,0.00014368,2]
[400663407,1767775839761,-1500.0,0.00014368,2]
[400663409,1767775839771,-1500.0,0.00014368,2]
[400663411,1767775839780,-1500.0,0.00014368,2]
[400663413,1767775839790,-294.83327033,0.00014533,2]
[400663415,1767775839799,-900.0,0.00014768,2]
[400663417,1767775839809,-1002.73058689,0.00014795,2]
[400663419,1767775839818,-1500.0,0.00014795,2]
[400663421,1767775839827,-636.08782837,0.00014795,2]
[400663423,1767775839838,-1500.0,0.00014795,2]
[400663425,1767775839847,-1500.0,0.00014795,2]
[400663427,1767775839857,-100000.0,0.00014882,2]
[400663429,1767775839867,-2000.0,0.00014916,2]
[400663431,1767775839877,-2000.0,0.00014916,2]
[400663433,1767775839886,-2000.0,0.00014916,2]
[400663435,1767775839896,-2000.0,0.00014916,2]
[400663437,1767775839905,-461.45,0.00014968,2]
[400663439,1767775839914,-1000.0,0.00015,2]
[400663441,1767775839924,-587.0,0.00015024,2]
[400663443,1767775839933,-250.875815,0.00015068,2]
[400663445,1767775839943,-800.0,0.00015068,2]
[400663447,1767775839952,-1200.0,0.00015316,2]
[400663449,1767775839962,-2000.0,0.00015342,2]
[400663451,1767775839971,-2000.0,0.00015342,2]
[400663453,1767775839980,-2000.0,0.00015342,2]
[400663455,1767775839989,-753.18830858,0.0001538,3]
[400663457,1767775839998,-13851.9949972,0.00015422,2]
[400663459,1767775840008,-2500.0,0.00015464,2]
[400663461,1767775840017,-2500.0,0.00015464,2]
[400663463,1767775840026,-2500.0,0.00015464,2]
[400663465,1767775840037,-2500.0,0.00015464,2]
[400663467,1767775840046,-864.0,0.00015654,2]
[400663469,1767775840055,-1203.39831266,0.00015864,2]
[400663471,1767775840064,-2500.0,0.0001589,2]
[400663473,1767775840074,-2500.0,0.0001589,2]
[400663475,1767775840083,-2500.0,0.0001589,2]
[400663477,1767775840092,-8929.0,0.00015939,2]
[400663479,1767775840101,-3000.0,0.00016012,2]
[400663481,1767775840111,-3000.0,0.00016012,2]
[400663484,1767775840122,-3000.0,0.00016012,2]
[400663486,1767775840131,-3000.0,0.00016012,2]
[400663487,1767775840140,-1600.0,0.00016164,2]
[400663489,1767775840150,-3168.93177223,0.00016189,2]
[400663491,1767775840159,-3000.0,0.00016438,2]
[400663493,1767775840168,-3000.0,0.00016438,2]
[400663495,1767775840177,-3000.0,0.00016438,2]
[400663497,1767775840187,-823.0,0.00016485,2]
[400663499,1767775840196,-339.80783699,0.00016533,2]
[400663501,1767775840206,-774.29394276,0.0001656,2]
[400663503,1767775840215,-3500.0,0.0001656,2]
[400663505,1767775840225,-2627.52709265,0.0001656,2]
[400663507,1767775840235,-3500.0,0.0001656,2]
[400663509,1767775840245,-253.11221216,0.0001669,2]
[400663511,1767775840255,-1012.70655649,0.00016826,5]
[400663513,1767775840264,-13851.9949972,0.00016842,2]
[400663515,1767775840274,-3500.0,0.00016986,2]
[400663517,1767775840283,-3500.0,0.00016986,2]
[400663519,1767775840293,-3500.0,0.00016986,2]
[400663521,1767775840302,-4000.0,0.00017108,2]
[400663523,1767775840312,-4000.0,0.00017108,2]
[400663525,1767775840321,-1000.0,0.00017219,2]
[400663527,1767775840331,-2400.0,0.0001726,2]
[400663529,1767775840340,-4000.0,0.00017534,2]
[400663531,1767775840350,-4000.0,0.00017534,2]
[400663533,1767775840360,-4000.0,0.00017534,2]
[400663535,1767775840370,-4500.0,0.00017656,2]
[400663537,1767775840380,-4500.0,0.00017656,2]
[400663539,1767775840390,-1000.0,0.000179,2]
[400663541,1767775840400,-1000.0,0.000179,2]
[400663543,1767775840410,-1000.0,0.000179,2]
[400663545,1767775840419,-1000.0,0.000179,2]
[400663547,1767775840428,-1000.0,0.000179,2]
[400663549,1767775840438,-1000.0,0.000179,2]
[400663551,1767775840447,-1000.0,0.000179,2]
[400663553,1767775840457,-1000.0,0.000179,2]
[400663555,1767775840467,-1000.0,0.000179,2]
[400663557,1767775840476,-1000.0,0.000179,2]
[400663559,1767775840485,-882.05613913,0.00018082,2]
[400663561,1767775840494,-4500.0,0.00018082,2]
[400663563,1767775840504,-4500.0,0.00018082,2]
[400663565,1767775840513,-15924.46772426,0.00018082,3]
[400663567,1767775840523,-1152.0,0.00018089,2]
[400663569,1767775840532,-5000.0,0.00018204,2]
[400663571,1767775840542,-5000.0,0.00018204,2]
[400663573,1767775840551,-1288.698116,0.00018273,8]
[400663575,1767775840560,-802.30074464,0.00018356,2]
[400663577,1767775840569,-250.875815,0.00018493,2]
[400663579,1767775840579,-384.78240365,0.00018533,2]
[400663581,1767775840588,-5000.0,0.0001863,2]
[400663583,1767775840597,-838.56279606,0.0001863,2]
[400663585,1767775840607,-5500.0,0.00018752,2]
[400663587,1767775840616,-5500.0,0.00018752,2]
[400663589,1767775840626,-1000.0,0.00018941,2]
[400663591,1767775840636,-244.0,0.00018941,2]
[400663593,1767775840645,-1041.66666667,0.00019171,2]
[400663595,1767775840654,-160.0,0.00019172,2]
[400663597,1767775840664,-352.8926,0.00019178,4]
[400663599,1767775840674,-352.8926,0.00019178,2]
[400663601,1767775840683,-352.8926,0.00019178,3]
[400663603,1767775840692,-352.8926,0.00019178,4]
[400663605,1767775840702,-352.8926,0.00019178,2]
[400663607,1767775840712,-352.8926,0.00019178,3]
[400663609,1767775840723,-900.0,0.00019178,2]
[400663611,1767775840733,-5011.36258874,0.00019178,2]
[400663613,1767775840742,-2811.62,0.000192,2]
[400663615,1767775840752,-258.12,0.000192,2]
[400663617,1767775840763,-243.07,0.000192,2]
[400663619,1767775840773,-25963.54,0.000192,2]
[400663621,1767775840782,-167.78,0.000192,2]
[400663623,1767775840792,-331.75246461,0.000193,2]
[400663625,1767775840804,-6000.0,0.000193,2]
[400663627,1767775840814,-158.0,0.00019315,3]
[400663639,1767775840915,-1578.56975094,0.0001972,11]
[400663642,1767775840936,-1549.57669197,0.00019726,2]
[400663644,1767775840946,-346.1,0.00019793,2]
[400663646,1767775840955,-6500.0,0.00019848,2]
[400663648,1767775840964,-1613.0,0.00019848,2]
[400663650,1767775840972,-3168.93177223,0.00019892,2]
[400663652,1767775840982,-1972.0,0.0002,2]
[400663654,1767775840991,-181.25348447,0.0002,2]
[400663656,1767775841002,-224.35,0.0002,2]
[400663658,1767775841011,-210.20532748,0.0002,2]
[400663660,1767775841020,-2002.67735813,0.00020396,2]
[400663662,1767775841030,-1045.06276723,0.00020524,2]
[400663664,1767775841039,-429.75697031,0.00020533,2]
[400663666,1767775841049,-2245.401059,0.00020548,2]
[400663668,1767775841058,-1000.0,0.00020835,2]
[400663670,1767775841067,-492.0,0.00020835,2]
[400663672,1767775841077,-1880.51738369,0.00021167,14]
[400663674,1767775841086,-346.1,0.00021399,2]
[400663676,1767775841096,-169.0,0.00021507,4]
[400663678,1767775841105,-243.07,0.000217,2]
[400663680,1767775841114,-25963.54,0.000217,2]
[400663682,1767775841123,-861.0,0.00021778,2]
[400663684,1767775841133,-250.875815,0.00021918,2]
[400663686,1767775841142,-1908.17,0.00022,7]
[400663688,1767775841151,-357.4,0.00022,2]
[400663690,1767775841160,-258.12,0.00022,7]
[400663692,1767775841169,-1148.14949882,0.00022,7]
[400663694,1767775841178,-157.018213,0.00022171,5]
[400663696,1767775841187,-300.0,0.00022466,2]
[400663698,1767775841197,-474.73153697,0.00022533,2]
[400663699,1767775841207,-2193.20354524,0.00022614,16]
[400663701,1767775841216,-1000.0,0.00022919,10]
[400663703,1767775841225,-791.0,0.00022919,10]
[400663705,1767775841234,-2811.62,0.00023,14]
[400663707,1767775841243,-1041.66666667,0.00023,3]
[400663709,1767775841252,-346.1,0.00023004,2]
[400663711,1767775841262,-450.0,0.00023014,2]
[400663713,1767775841271,-2200.0,0.00023212,2]
[400663715,1767775841282,-191.37491647,0.00023253,13]
[400663717,1767775841292,-587.58501506,0.00023378,2]
[400663719,1767775841301,-600.0,0.00023562,2]
[400663721,1767775841310,-3168.93177223,0.00023594,2]
[400663723,1767775841320,-1908.17,0.000237,7]
[400663725,1767775841329,-2515.59177387,0.00024061,19]
[400663727,1767775841339,-750.0,0.0002411,2]
[400663729,1767775841348,-283.8,0.0002412,2]
[400663731,1767775841358,-2200.0,0.00024132,2]
[400663733,1767775841368,-2200.0,0.00024288,2]
[400663735,1767775841377,-191.37491647,0.00024506,14]
[400663737,1767775841387,-519.70610363,0.00024533,2]
[400663739,1767775841396,-15924.41,0.000246,3]
[400663741,1767775841405,-346.1,0.0002461,2]
[400663743,1767775841416,-900.0,0.00024658,2]
[400663745,1767775841425,-500.0,0.00024789,2]
[400663747,1767775841435,-181.0,0.00024795,14]
[400663749,1767775841444,-622309.500941,0.000249,2]
[400663751,1767775841453,-1908.17,0.000251,7]
[400663753,1767775841463,-2200.0,0.00025182,7]
[400663755,1767775841472,-2200.0,0.00025196,7]
[400663757,1767775841481,-1041.66666667,0.000252,7]
[400663759,1767775841491,-250.0,0.00025205,2]
[400663761,1767775841502,-1181.07580657,0.00025205,2]
[400663763,1767775841511,-500.0,0.00025206,2]
[400663765,1767775841520,-176.1819283,0.00025206,2]
[400663767,1767775841530,-500.0,0.00025206,2]
[400663769,1767775841539,-210.40515533,0.00025206,2]
[400663771,1767775841548,-500.0,0.00025206,2]
[400663773,1767775841558,-272.15124773,0.00025206,2]
[400663775,1767775841567,-174.35129213,0.00025206,2]
[400663777,1767775841577,-500.0,0.00025206,2]
[400663779,1767775841587,-206.58822789,0.00025206,2]
[400663781,1767775841597,-500.0,0.00025206,2]
[400663783,1767775841607,-500.0,0.00025206,2]
[400663785,1767775841616,-500.0,0.00025206,2]
[400663787,1767775841625,-151.52117963,0.00025206,2]
[400663789,1767775841634,-500.0,0.00025206,2]
[400663791,1767775841643,-990.0,0.00025206,2]
[400663793,1767775841652,-150.75126271,0.00025206,2]
[400663795,1767775841661,-500.0,0.00025206,2]
[400663797,1767775841671,-1000.0,0.00025211,10]
[400663799,1767775841680,-1000.0,0.00025211,10]
[400663801,1767775841690,-250.875815,0.00025342,2]
[400663803,1767775841699,-261.5353383,0.00025343,2]
[400663805,1767775841708,-151.56017143,0.00025343,2]
[400663806,1767775841717,-229.44903306,0.00025343,2]
[400663809,1767775841729,-500.0,0.00025343,2]
[400663811,1767775841739,-500.0,0.00025343,2]
[400663813,1767775841748,-500.0,0.00025343,2]
[400663815,1767775841757,-261.88445837,0.00025343,2]
[400663817,1767775841766,-500.0,0.00025343,2]
[400663818,1767775841776,-500.0,0.00025343,2]
[400663820,1767775841785,-500.0,0.00025343,2]
[400663823,1767775841795,-500.0,0.00025343,2]
[400663825,1767775841806,-500.0,0.00025343,2]
[400663827,1767775841816,-990.0,0.00025343,2]
[400663829,1767775841825,-209.63078805,0.00025343,2]
[400663831,1767775841834,-500.0,0.00025343,2]
[400663833,1767775841844,-210.83487892,0.00025343,2]
[400663834,1767775841853,-243.07,0.000254,7]
[400663836,1767775841862,-25963.54,0.000254,2]
[400663838,1767775841871,-152.02997996,0.0002548,2]
[400663840,1767775841881,-500.0,0.0002548,2]
[400663842,1767775841890,-154.82317524,0.0002548,2]
[400663844,1767775841901,-306.8595936,0.0002548,2]
[400663846,1767775841910,-151.71242224,0.0002548,2]
[400663848,1767775841919,-500.0,0.0002548,2]
[400663850,1767775841929,-500.0,0.0002548,2]
[400663852,1767775841939,-500.0,0.0002548,2]
[400663854,1767775841948,-595.12568369,0.0002548,2]
[400663856,1767775841958,-500.0,0.0002548,2]
[400663858,1767775841967,-990.0,0.0002548,2]
[400663860,1767775841976,-259.14783661,0.0002548,2]
[400663862,1767775841985,-500.0,0.00025486,7]
[400663864,1767775841994,-258.12,0.000255,7]
[400663866,1767775842003,-2846.85214521,0.00025507,22]
[400663868,1767775842013,-2000.0,0.00025611,7]
[400663870,1767775842022,-266.491439,0.00025617,2]
[400663872,1767775842032,-500.0,0.00025617,2]
[400663874,1767775842041,-500.0,0.00025617,2]
[400663876,1767775842050,-500.0,0.00025617,2]
[400663878,1767775842059,-500.0,0.00025617,2]
[400663880,1767775842068,-990.0,0.00025617,2]
[400663882,1767775842077,-160.56827625,0.00025617,2]
[400663884,1767775842086,-177.57781539,0.00025617,2]
[400663886,1767775842095,-2200.0,0.00025665,7]
[400663888,1767775842104,-350.0,0.00025753,2]
[400663890,1767775842114,-153.50612113,0.00025754,2]
[400663892,1767775842123,-500.0,0.00025754,2]
[400663894,1767775842132,-621.60339535,0.00025754,2]
[400663896,1767775842142,-206.74458148,0.00025754,2]
[400663898,1767775842151,-500.0,0.00025754,2]
[400663900,1767775842160,-509.34709244,0.00025754,2]
[400663902,1767775842169,-990.0,0.00025754,2]
[400663904,1767775842178,-156.27075541,0.00025754,2]
[400663906,1767775842188,-191.37491647,0.00025759,15]
[400663908,1767775842197,-500.0,0.00025771,7]
[400663911,1767775842207,-2200.0,0.00025878,7]
[400663913,1767775842216,-2200.0,0.00025888,7]
[400663915,1767775842225,-500.0,0.00025891,2]
[400663917,1767775842234,-500.0,0.00025891,2]
[400663919,1767775842243,-990.0,0.00025891,2]
[400663921,1767775842252,-153.33527069,0.00025891,2]
[400663923,1767775842262,-2200.0,0.00025912,7]
[400663925,1767775842271,-500.0,0.00026028,2]
[400663927,1767775842280,-500.0,0.00026028,2]
[400663929,1767775842289,-990.0,0.00026028,2]
[400663931,1767775842299,-2811.62,0.000261,14]
[400663933,1767775842308,-500.0,0.00026165,2]
[400663935,1767775842318,-500.0,0.00026165,2]
[400663937,1767775842327,-990.0,0.00026165,2]
[400663939,1767775842337,-1908.17,0.000262,7]
[400663941,1767775842346,-346.1,0.00026216,2]
[400663944,1767775842356,-450.0,0.00026301,2]
[400663945,1767775842369,-500.0,0.00026302,2]
[400663948,1767775842379,-364.24644296,0.00026302,2]
[400663949,1767775842389,-990.0,0.00026302,2]
[400663951,1767775842409,-500.0,0.0002632,7]
[400663953,1767775842429,-2000.0,0.00026331,7]
[400663956,1767775842441,-1974.17602471,0.00026413,2]
[400663958,1767775842451,-500.0,0.00026433,7]
[400663960,1767775842461,-500.0,0.00026439,2]
[400663962,1767775842471,-990.0,0.00026439,2]
[400663964,1767775842480,-2200.0,0.00026478,7]
[400663966,1767775842491,-2200.0,0.00026517,7]
[400663968,1767775842501,-564.68067029,0.00026533,2]
[400663970,1767775842510,-2200.0,0.00026566,7]
[400663972,1767775842520,-500.0,0.00026576,2]
[400663974,1767775842530,-990.0,0.00026576,2]
[400663976,1767775842539,-357.4,0.000266,2]
[400663978,1767775842548,-500.0,0.00026713,2]
[400663980,1767775842558,-990.0,0.00026713,2]
[400663982,1767775842567,-243.07,0.000268,7]
[400663984,1767775842576,-25963.54,0.000268,2]
[400663986,1767775842586,-550.0,0.00026849,2]
[400663988,1767775842595,-500.0,0.0002685,2]
[400663990,1767775842604,-990.0,0.0002685,2]
[400663992,1767775842614,-258.12,0.000269,7]
[400663994,1767775842623,-3186.3031486,0.00026954,24]
[400663996,1767775842632,-500.0,0.00026987,2]
[400663998,1767775842641,-990.0,0.00026987,2]
[400664000,1767775842651,-2200.0,0.00026997,7]
[400664002,1767775842661,-1041.66666667,0.00027,7]
[400664004,1767775842670,-2200.0,0.00027008,7]
[400664006,1767775842679,-500.0,0.0002701,7]
[400664008,1767775842690,-191.37491647,0.00027012,17]
[400664010,1767775842700,-2000.0,0.0002705,7]
[400664012,1767775842710,-500.0,0.00027124,2]
[400664014,1767775842720,-990.0,0.00027124,2]
[400664016,1767775842730,-500.0,0.00027135,7]
[400664018,1767775842740,-302.47712024,0.00027261,2]
[400664020,1767775842750,-990.0,0.00027261,2]
[400664022,1767775842759,-10000.0,0.00027297,2]
[400664033,1767775842859,-3168.93177223,0.00027297,2]
[400664035,1767775842868,-1908.17,0.000273,7]
[400664037,1767775842878,-500.0,0.00027397,2]
[400664039,1767775842887,-500.0,0.00027397,2]
[400664041,1767775842896,-500.0,0.00027397,2]
[400664043,1767775842905,-500.0,0.00027397,2]
[400664045,1767775842914,-500.0,0.00027397,2]
[400664046,1767775842924,-459.12,0.00027397,2]
[400664048,1767775842933,-500.0,0.00027397,2]
[400664050,1767775842942,-500.0,0.00027397,2]
[400664052,1767775842950,-500.0,0.00027397,2]
[400664054,1767775842959,-500.0,0.00027397,2]
[400664056,1767775842968,-500.0,0.00027397,2]
[400664058,1767775842977,-500.0,0.00027397,2]
[400664060,1767775842986,-500.0,0.00027397,2]
[400664062,1767775842995,-536.59529358,0.00027397,2]
[400664063,1767775843005,-500.0,0.00027397,2]
[400664065,1767775843014,-500.0,0.00027397,2]
[400664067,1767775843023,-275.89701196,0.00027397,2]
[400664069,1767775843032,-237.11230627,0.00027397,2]
[400664071,1767775843041,-500.0,0.00027397,2]
[400664073,1767775843050,-500.0,0.00027397,2]
[400664075,1767775843059,-500.0,0.00027397,2]
[400664077,1767775843070,-500.0,0.00027397,2]
[400664079,1767775843079,-500.0,0.00027397,2]
[400664081,1767775843089,-500.0,0.00027397,2]
[400664083,1767775843098,-500.0,0.00027397,2]
[400664085,1767775843107,-500.0,0.00027397,2]
[400664087,1767775843116,-500.0,0.00027397,2]
[400664089,1767775843126,-500.0,0.00027397,2]
[400664091,1767775843135,-488.58553069,0.00027397,2]
[400664093,1767775843145,-500.0,0.00027397,2]
[400664095,1767775843154,-500.0,0.00027397,2]
[400664097,1767775843164,-500.0,0.00027397,2]
[400664099,1767775843173,-500.0,0.00027397,2]
[400664101,1767775843182,-500.0,0.00027397,2]
[400664103,1767775843191,-500.0,0.00027397,2]
[400664105,1767775843200,-500.0,0.00027397,2]
[400664107,1767775843210,-500.0,0.00027397,2]
[400664109,1767775843219,-500.0,0.00027397,2]
[400664111,1767775843228,-617.55279622,0.00027397,2]
[400664113,1767775843237,-500.0,0.00027397,2]
[400664115,1767775843247,-200.69574063,0.00027397,2]
[400664117,1767775843256,-500.0,0.00027397,2]
[400664119,1767775843265,-500.0,0.00027397,2]
[400664121,1767775843274,-500.0,0.00027397,2]
[400664123,1767775843283,-419.07810872,0.00027397,2]
[400664125,1767775843292,-563.61353423,0.00027397,2]
[400664127,1767775843302,-500.0,0.00027397,2]
[400664129,1767775843311,-343.357016,0.00027397,2]
[400664131,1767775843320,-500.0,0.00027397,2]
[400664133,1767775843329,-333.045617,0.00027397,2]
[400664135,1767775843339,-277.779251,0.00027397,2]
[400664136,1767775843349,-500.0,0.00027397,2]
[400664138,1767775843360,-500.0,0.00027397,2]
[400664140,1767775843370,-500.0,0.00027397,2]
[400664142,1767775843379,-500.0,0.00027397,2]
[400664144,1767775843390,-500.0,0.00027397,2]
[400664146,1767775843400,-500.0,0.00027397,2]
[400664148,1767775843410,-500.0,0.00027397,2]
[400664150,1767775843421,-500.0,0.00027397,2]
[400664152,1767775843431,-500.0,0.00027397,2]
[400664154,1767775843440,-461.56079082,0.00027397,2]
[400664156,1767775843450,-500.0,0.00027397,2]
[400664157,1767775843459,-500.0,0.00027397,2]
[400664158,1767775843468,-500.0,0.00027397,2]
[400664159,1767775843477,-557.84,0.00027397,2]
[400664160,1767775843486,-497.79664648,0.00027397,2]
[400664161,1767775843496,-500.0,0.00027397,2]
[400664162,1767775843505,-500.0,0.00027397,2]
[400664163,1767775843514,-277.01965279,0.00027397,2]
[400664164,1767775843523,-492.19266173,0.00027397,2]
[400664165,1767775843532,-500.0,0.00027397,2]
[400664166,1767775843541,-500.0,0.00027397,2]
[400664167,1767775843551,-513.4838321,0.00027397,2]
[400664168,1767775843560,-500.0,0.00027397,2]
[400664169,1767775843569,-500.0,0.00027397,2]
[400664170,1767775843577,-500.0,0.00027397,2]
[400664171,1767775843586,-500.0,0.00027397,2]
[400664172,1767775843595,-500.0,0.00027397,2]
[400664173,1767775843604,-500.0,0.00027397,2]
[400664174,1767775843614,-500.0,0.00027397,2]
[400664175,1767775843623,-500.0,0.00027397,2]
[400664176,1767775843632,-500.0,0.00027397,2]
[400664177,1767775843640,-500.0,0.00027397,2]
[400664178,1767775843650,-355.05083788,0.00027397,2]
[400664179,1767775843659,-500.0,0.00027397,2]
[400664180,1767775843668,-500.0,0.00027397,2]
[400664181,1767775843677,-502.36418177,0.00027397,2]
[400664182,1767775843686,-500.0,0.00027397,2]
[400664183,1767775843695,-500.0,0.00027397,2]
[400664184,1767775843704,-371.20529437,0.00027397,2]
[400664185,1767775843714,-500.0,0.00027397,2]
[400664186,1767775843726,-500.0,0.00027397,2]
[400664187,1767775843735,-500.0,0.00027397,2]
[400664188,1767775843745,-500.0,0.00027397,2]
[400664189,1767775843754,-500.0,0.00027397,2]
[400664190,1767775843763,-500.0,0.00027397,2]
[400664191,1767775843772,-500.0,0.00027397,2]
[400664192,1767775843781,-500.0,0.00027397,2]
[400664193,1767775843790,-500.0,0.00027397,2]
[400664194,1767775843799,-500.0,0.00027397,2]
[400664195,1767775843808,-509.25652376,0.00027397,2]
[400664196,1767775843817,-500.0,0.00027397,2]
[400664197,1767775843826,-500.0,0.00027397,2]
[400664198,1767775843835,-572.76326727,0.00027397,2]
[400664199,1767775843844,-500.0,0.00027397,2]
[400664200,1767775843852,-500.0,0.00027397,2]
[400664202,1767775843862,-448.47784493,0.00027397,2]
[400664204,1767775843871,-500.0,0.00027397,2]
[400664206,1767775843880,-354.03723532,0.00027397,2]
[400664208,1767775843889,-244.48670359,0.00027397,2]
[400664210,1767775843898,-500.0,0.00027397,2]
[400664212,1767775843907,-500.0,0.00027397,2]
[400664214,1767775843916,-348.69291317,0.00027397,2]
[400664216,1767775843926,-500.0,0.00027397,2]
[400664218,1767775843935,-506.15978028,0.00027397,2]
[400664220,1767775843944,-204.4507679,0.00027397,2]
[400664222,1767775843956,-492.83964034,0.00027397,2]
[400664224,1767775843966,-500.0,0.00027397,2]
[400664226,1767775843975,-500.0,0.00027397,2]
[400664228,1767775843985,-330.48636808,0.00027397,2]
[400664230,1767775843995,-500.0,0.00027397,2]
[400664232,1767775844004,-1000.0,0.00027397,2]
[400664234,1767775844013,-500.0,0.00027397,2]
[400664236,1767775844023,-472.0779569,0.00027397,2]